bitfinex-derivatives/quotes_ETHF0:USTF0_20260209
["timestamp","ask_amount","ask_price","bid_price","bid_amount"]
[1770659290880,8.6381527,2126.0,2125.1,10.50965142]
[1770659291184,10.78862396,2126.3,2125.1,10.50965142]
[1770659291782,8.43839725,2126.6,2125.1,10.50965142]
[1770659292482,0.23531,2126.3,2125.1,10.50965142]
[1770659292980,0.23531,2126.3,2125.1,10.51302102]
[1770659292981,0.00600082,2126.3,2125.1,10.51302102]
[1770659293184,9.39685207,2127.2,2125.3,10.50965142]
[1770659293387,0.2352,2127.4,2125.7,10.50965142]
[1770659293589,9.63805289,2127.4,2125.7,10.50965142]
[1770659294186,9.64145937,2127.4,2125.7,10.50965142]
[1770659294886,7.4541354,2127.1,2125.7,10.50965142]
[1770659295082,7.6893854,2126.9,2125.7,10.50965142]
[1770659297586,0.00525915,2126.4,2125.7,10.50965142]
[1770659297984,7.40558627,2126.7,2125.7,10.50965142]
[1770659297985,0.23525,2126.9,2125.7,10.50965142]
[1770659298289,0.23522,2127.2,2125.7,10.50965142]
[1770659298586,5.30887055,2127.2,2125.7,10.50965142]
[1770659299485,0.23522,2127.2,2125.7,10.50965142]
[1770659299988,0.23516,2127.7,2125.9,10.63419085]
[1770659300585,5.13080615,2127.9,2126.1,10.63419085]
[1770659300782,6.01884,2128.2,2126.1,10.63419085]
[1770659300783,5.13080615,2127.5,2126.1,10.63419085]
[1770659300986,0.23519,2127.4,2126.1,10.63419085]
[1770659301187,3.01546449,2127.4,2126.1,10.63419085]
[1770659301986,3.01914018,2127.4,2126.1,10.63419085]
[1770659302284,0.23886569,2127.4,2126.1,10.63419085]
[1770659303289,3.0241363,2127.4,2126.1,10.63419085]
[1770659303993,0.67019816,2127.4,2126.1,10.63419085]
[1770659304694,0.23525,2127.0,2126.1,10.63419085]
[1770659304892,0.63682253,2126.7,2125.2,11.32395682]
[1770659306994,4.49885087,2127.2,2125.2,11.32395682]
[1770659307693,0.2352,2127.3,2125.2,11.32395682]
[1770659307889,0.23523,2127.1,2125.2,11.32395682]
[1770659308091,0.2388148,2127.1,2125.2,11.32395682]
[1770659308291,0.2388148,2127.1,2125.6,11.60683922]
[1770659309990,5.78586,2127.4,2125.6,11.60683922]
[1770659310190,0.23523,2127.1,2125.6,11.60683922]
[1770659310498,0.23527,2126.7,2125.6,11.60683922]
[1770659311094,0.23992975,2126.7,2125.6,11.60683922]
[1770659313187,3.76003573,2127.2,2125.6,11.60683922]
[1770659313588,0.23527,2126.7,2125.6,11.60683922]
[1770659314197,0.23866505,2126.7,2125.6,11.60683922]
[1770659316091,0.03348453,2127.2,2125.6,11.60683922]
[1770659316289,0.23526,2126.8,2125.6,11.60683922]
[1770659316696,0.23531,2126.4,2125.6,11.60683922]
[1770659317089,0.24013763,2126.4,2125.6,11.60683922]
[1770659317900,0.28192235,2127.0,2125.6,11.60683922]
[1770659318294,0.23525,2126.9,2125.6,11.60683922]
[1770659318696,0.2353,2126.5,2125.6,11.60683922]
[1770659318900,0.24098593,2126.5,2125.6,11.60683922]
[1770659319099,1.09334971,2126.9,2125.6,11.60683922]
[1770659319802,0.12324907,2126.8,2125.6,11.60683922]
[1770659320302,0.12723137,2126.8,2125.6,11.60683922]
[1770659320500,0.12723137,2126.8,2125.1,0.0033696]
[1770659320501,0.23538,2125.7,2125.1,10.63756045]
[1770659320700,14.77893997,2125.7,2124.9,10.63419085]
[1770659320896,0.2354,2125.5,2124.9,10.63419085]
[1770659321203,11.8545804,2125.5,2124.0,10.63419085]
[1770659321702,11.8545804,2125.5,2124.0,10.63846038]
[1770659322301,0.2354,2125.5,2124.0,10.63846038]
[1770659322502,10.83458816,2126.0,2124.4,10.63419085]
[1770659322806,0.2354,2125.6,2124.4,10.63419085]
[1770659325310,11.6191804,2126.2,2124.4,10.63419085]
[1770659325504,0.23543,2125.3,2124.4,10.63419085]
[1770659325809,0.23903515,2125.3,2124.4,10.63419085]
[1770659326001,11.29999073,2125.8,2124.4,10.63419085]
[1770659326203,0.24358563,2125.6,2124.4,10.63419085]
[1770659326403,0.23543,2125.3,2124.4,10.63419085]
[1770659327003,0.24032003,2125.3,2124.4,10.63419085]
[1770659327908,11.54031076,2125.3,2124.4,10.63419085]
[1770659328305,9.18637262,2125.3,2124.4,10.63419085]
[1770659328705,9.42180262,2125.3,2124.4,10.63419085]
[1770659329313,0.00462253,2125.3,2124.4,10.63419085]
[1770659331306,8.06603926,2125.5,2124.4,10.63419085]
[1770659331513,8.19526989,2125.7,2124.4,10.63419085]
[1770659332107,0.23537,2125.8,2124.4,10.63419085]
[1770659332306,0.00391996,2125.8,2124.4,10.63419085]
[1770659332708,8.38517604,2126.3,2124.6,13.72247238]
[1770659332914,8.38517604,2126.3,2124.7,10.79809281]
[1770659333212,8.38517604,2126.3,2124.7,11.03358281]
[1770659333213,0.23532,2126.3,2124.7,11.03358281]
[1770659333710,0.2408481,2126.3,2124.7,11.03358281]
[1770659334308,6.04068596,2126.5,2124.7,11.03358281]
[1770659334701,0.23532,2126.3,2124.7,11.03358281]
[1770659335311,0.23956666,2126.3,2124.7,11.03358281]
[1770659336813,0.23536,2125.9,2124.7,10.79809281]
[1770659337412,4.04221218,2126.3,2124.7,10.79809281]
[1770659337609,0.23536,2125.9,2124.7,10.79809281]
[1770659338217,0.23531,2126.4,2124.7,10.79809281]
[1770659338416,0.23955027,2126.4,2124.7,10.79809281]
[1770659339010,4.90579504,2126.4,2124.7,10.79809281]
[1770659340108,0.23955027,2126.4,2124.7,10.79809281]
[1770659340511,2.63228421,2126.5,2124.7,10.79809281]
[1770659341518,0.00365947,2126.5,2125.1,10.79809281]
[1770659341919,2.85287682,2126.5,2125.1,10.79809281]
[1770659342217,2.61392735,2125.9,2125.1,10.79809281]
[1770659343318,2.61392735,2126.4,2125.1,10.79809281]
[1770659343513,0.25998921,2126.1,2125.1,10.79809281]
[1770659344515,0.15135611,2125.5,2124.6,11.57534632]
[1770659344714,2.92437957,2125.3,2124.6,11.57534632]
[1770659345215,0.38679611,2125.2,2124.1,11.57534632]
[1770659345921,0.23544,2125.2,2124.1,11.57534632]
[1770659346118,0.29458018,2125.2,2124.1,11.57534632]
[1770659346618,2.92437957,2125.3,2124.1,11.57534632]
[1770659347722,3.15975957,2125.7,2124.1,11.57534632]
[1770659348615,8.95028957,2125.7,2124.1,11.57534632]
[1770659348916,3.15975957,2125.7,2124.1,11.57534632]
[1770659349120,0.23538,2125.7,2124.1,11.57534632]
[1770659349317,2.92437957,2126.1,2124.3,11.65102438]
[1770659349519,0.8094309,2126.5,2124.5,11.65102438]
[1770659350025,0.06505239,2126.4,2124.5,11.65102438]
[1770659350316,0.30032239,2126.7,2124.9,11.61849818]
[1770659350520,0.30526443,2126.7,2124.9,11.61849818]
[1770659350719,0.24021204,2126.7,2124.9,11.61849818]
[1770659350924,0.00494204,2126.7,2125.5,11.61849818]
[1770659351127,0.00494204,2126.7,2125.5,11.62324528]
[1770659351316,0.23522,2127.2,2125.5,11.62324528]
[1770659352118,2.92437957,2127.5,2125.7,11.58419865]
[1770659352319,0.23516,2127.8,2126.1,11.58419865]
[1770659352520,0.00444874,2127.5,2126.1,11.58419865]
[1770659352721,5.91745146,2128.2,2126.0,0.23535]
[1770659352722,0.13365146,2128.2,2126.3,11.58419865]
[1770659353324,3.15946957,2128.4,2126.5,11.58419865]
[1770659353524,2.92437957,2128.0,2126.7,11.58419865]
[1770659353727,0.00595058,2128.0,2126.7,11.58419865]
[1770659353920,0.10487449,2128.0,2126.7,11.58419865]
[1770659354327,0.00595058,2128.0,2126.7,11.58419865]
[1770659354630,0.09892391,2127.8,2126.7,11.58419865]
[1770659354927,0.23507,2128.5,2126.7,11.58419865]
[1770659355123,0.10487449,2128.9,2126.9,11.59858713]
[1770659355518,0.23501,2129.1,2127.1,11.59858713]
[1770659355719,3.76034896,2129.3,2127.1,11.59858713]
[1770659355924,6.68966417,2129.3,2127.2,11.64637178]
[1770659356426,6.68966417,2129.3,2127.6,11.64637178]
[1770659356427,0.00493564,2129.3,2127.6,11.64637178]
[1770659356633,0.00493564,2129.3,2128.0,11.64637178]
[1770659356823,0.24358563,2129.1,2128.0,11.64637178]
[1770659357223,0.23502,2129.0,2127.8,11.64637178]
[1770659357827,0.00493564,2129.3,2127.8,11.64637178]
[1770659358733,3.90787375,2130.1,2127.8,11.64637178]
[1770659359227,0.23494,2129.7,2127.8,11.64637178]
[1770659359434,6.01456,2129.7,2127.8,11.64637178]
[1770659359626,9.73158575,2129.7,2127.8,11.64637178]
[1770659360232,0.2395026,2129.7,2127.8,11.64637178]
[1770659360629,6.01533,2129.5,2127.8,11.64637178]
[1770659360825,0.23496,2129.5,2127.8,11.64637178]
[1770659361840,0.00142349,2129.4,2127.8,11.64637178]
[1770659362637,0.00142349,2129.2,2127.8,11.64637178]
[1770659362845,0.00142349,2129.0,2127.8,11.64637178]
[1770659363150,0.00142349,2128.8,2127.8,11.64637178]
[1770659363648,0.00142349,2129.1,2127.8,11.64637178]
[1770659363838,0.24054046,2129.4,2127.8,11.64637178]
[1770659364944,0.2349,2130.1,2128.1,11.64451996]
[1770659365145,0.23483,2130.8,2128.3,11.64451996]
[1770659365342,0.23485,2130.5,2128.5,11.64451996]
[1770659365850,0.23898516,2130.5,2128.5,11.64451996]
[1770659366046,9.07118,2131.0,2128.4,0.23508]
[1770659366047,6.01041,2131.2,2129.0,11.64451996]
[1770659366240,6.01154,2130.8,2129.0,11.64451996]
[1770659366846,0.23486,2130.4,2129.0,11.64451996]
[1770659367046,6.01779847,2130.4,2129.0,11.65046725]
[1770659367444,0.23491,2130.0,2129.0,11.65046725]
[1770659367851,3.66228967,2130.2,2129.0,11.65046725]
[1770659368346,0.23491,2130.0,2129.0,11.65046725]
[1770659369449,5.78293847,2130.4,2129.0,11.65046725]
[1770659369450,0.00503847,2130.4,2129.0,11.65046725]
[1770659369652,0.23485,2130.6,2129.0,11.65046725]
[1770659369949,0.23478,2131.2,2129.0,11.65046725]
[1770659370151,0.00503847,2130.8,2129.0,11.65046725]
[1770659370352,0.2348,2131.0,2129.0,11.65046725]
[1770659370650,6.01204,2130.6,2129.0,11.65046725]
[1770659370957,0.23485,2130.6,2129.0,11.65046725]
[1770659371159,9.4927576,2131.0,2129.0,11.65046725]
[1770659371160,0.00411445,2131.0,2129.0,11.65046725]
[1770659371449,5.77453,2131.6,2129.0,11.65046725]
[1770659371450,0.23476,2131.4,2129.9,11.64451996]
[1770659371849,0.23476,2131.4,2129.9,11.40093433]
[1770659372255,0.23807915,2131.4,2129.9,11.40093433]
[1770659372656,6.01310915,2131.4,2129.9,11.40093433]
[1770659373153,0.23807915,2131.4,2129.9,11.40093433]
[1770659373851,5.77582,2131.1,2129.9,11.40093433]
[1770659374157,0.2348,2131.0,2129.9,11.40093433]
[1770659374346,6.0109,2131.0,2129.9,11.40093433]
[1770659374944,9.72705748,2131.0,2129.9,11.40093433]
[1770659375151,3.95095748,2131.0,2129.9,11.40093433]
[1770659375957,0.23849433,2131.0,2129.9,11.40093433]
[1770659376954,3.661944,2131.6,2129.9,11.40093433]
[1770659377351,0.2348,2131.0,2129.9,11.40093433]
[1770659377654,0.23473,2131.6,2129.9,11.40093433]
[1770659378156,0.23911452,2131.6,2129.9,11.40093433]
[1770659378360,0.23478,2131.2,2129.9,11.40093433]
[1770659378856,5.77505,2131.4,2129.6,11.64451996]
[1770659378857,0.23487,2130.3,2129.6,11.64451996]
[1770659379547,6.01286,2130.3,2129.1,11.64451996]
[1770659380058,3.66212967,2130.2,2129.1,11.64451996]
[1770659380254,0.23493,2129.9,2129.1,11.64451996]
[1770659380458,0.23497,2129.5,2129.1,11.15146996]
[1770659381352,0.23498,2129.3,2128.5,11.3743331]
[1770659381557,6.01569,2129.3,2128.5,11.3743331]
[1770659382058,0.23498,2129.3,2128.5,11.3743331]
[1770659382465,6.01571,2129.3,2128.5,11.37974938]
[1770659382758,0.23498,2129.3,2128.5,11.37974938]
[1770659382959,5.77989,2129.6,2128.5,11.37974938]
[1770659383262,0.23498,2129.3,2128.5,11.37974938]
[1770659383857,0.23501,2129.1,2128.5,0.00541628]
[1770659384059,0.23501,2129.1,2128.5,11.37433938]
[1770659384562,0.23495,2129.7,2128.5,11.37433938]
[1770659386159,3.66832857,2130.2,2128.5,11.37433938]
[1770659386365,5.08318021,2130.2,2128.5,11.37433938]
[1770659386661,0.23495,2129.7,2128.5,11.37433938]
[1770659387059,0.23863976,2129.7,2128.5,11.37433938]
[1770659387364,0.23499,2129.3,2128.5,11.37433938]
[1770659388558,0.00368976,2129.7,2128.5,11.37433938]
[1770659388764,1.59418011,2130.7,2128.7,10.97869786]
[1770659389066,5.01956978,2130.9,2128.7,10.97869786]
[1770659389266,0.23484,2130.7,2128.9,11.65836791]
[1770659390768,0.23488,2130.3,2128.9,11.65836791]
[1770659391061,5.77754,2130.5,2128.5,6.28e-06]
[1770659391062,0.23498,2129.3,2128.5,6.28e-06]
[1770659391658,6.0169,2128.9,2127.6,11.25426061]
[1770659392064,3.66583967,2128.9,2127.6,11.25426061]
[1770659392467,3.90087967,2128.9,2127.6,11.25426061]
[1770659392662,3.90589565,2128.9,2127.6,11.25967692]
[1770659392861,4.65348928,2128.9,2127.6,11.25967692]
[1770659393465,0.24005598,2128.9,2127.6,11.25967692]
[1770659394161,2.14686353,2128.9,2127.6,11.25967692]
[1770659394773,0.24005598,2128.9,2127.6,11.25967692]
[1770659395166,1.90680755,2129.4,2127.6,11.25967692]
[1770659395371,1.90680755,2129.2,2127.6,11.25967692]
[1770659395972,0.23504,2128.9,2127.6,11.25967692]
[1770659396169,0.24087925,2128.9,2127.6,11.25967692]
[1770659397475,2.76692714,2128.7,2127.6,11.25967692]
[1770659398371,0.23505,2128.7,2127.6,11.25967692]
[1770659400377,0.00503847,2128.6,2127.6,11.25967692]
[1770659400776,0.23505,2128.7,2127.6,11.25967692]
[1770659401173,6.08757006,2128.9,2127.6,11.25967692]
[1770659401378,3.97739898,2128.9,2127.6,11.25967692]
[1770659401681,0.23515,2127.9,2127.3,6.56685788]
[1770659401875,6.01966,2127.9,2125.9,10.91066583]
[1770659402077,0.23518,2127.5,2126.5,10.91066583]
[1770659402571,0.23518,2127.5,2126.7,10.91066583]
[1770659402777,0.23997261,2127.5,2126.7,10.91066583]
[1770659403178,0.00479261,2127.5,2126.9,10.91066583]
[1770659403573,0.23513,2128.1,2126.9,10.91066583]
[1770659403975,0.29378461,2128.9,2126.5,0.00383893]
[1770659403976,0.23506,2128.6,2127.1,10.91066583]
[1770659404379,9.43884165,2129.0,2127.3,9.3968]
[1770659404575,9.43884165,2129.0,2127.4,10.91066583]
[1770659404781,9.44307839,2129.0,2127.4,10.91066583]
[1770659405581,0.23506,2128.6,2127.5,10.91066583]
[1770659406479,0.23506,2128.6,2127.7,10.91066583]
[1770659406981,0.23506,2128.6,2127.7,20.30746583]
[1770659407186,0.23506,2128.6,2127.8,10.91066583]
[1770659407386,7.76992358,2129.1,2127.8,10.91066583]
[1770659407685,0.23506,2128.6,2127.8,10.91066583]
[1770659407984,8.03082724,2128.6,2127.8,10.91066583]
[1770659408184,8.03087724,2128.2,2126.6,10.91066583]
[1770659408380,0.24000472,2128.2,2126.8,10.91066583]
[1770659409085,0.24000472,2128.2,2127.2,10.91066583]
[1770659409479,0.24000472,2128.2,2127.5,10.91066583]
[1770659410387,5.66097217,2128.5,2127.6,10.91066583]
[1770659410587,0.23511,2128.2,2127.6,10.91066583]
[1770659411281,0.23506,2128.7,2127.7,10.91066583]
[1770659411482,0.00383943,2128.2,2127.7,10.91066583]
[1770659411683,0.23506,2128.7,2127.7,10.91066583]
[1770659411986,0.23506,2128.7,2127.9,10.91066583]
[1770659412783,0.23875538,2128.7,2127.9,10.91066583]
[1770659412980,0.235,2129.2,2128.2,10.91066583]
[1770659413187,0.23504,2128.8,2128.2,10.91066583]
[1770659413377,5.65996034,2129.0,2127.9,10.91066583]
[1770659413785,3.77898001,2128.8,2127.9,10.91066583]
[1770659413976,3.77898001,2128.8,2127.9,10.91636394]
[1770659414180,3.78413212,2128.8,2127.9,10.91636394]
[1770659414385,0.23506,2128.6,2127.9,10.91636394]
[1770659416376,0.00515211,2128.8,2127.9,10.91636394]
[1770659416578,0.23506,2128.6,2128.1,10.90262236]
[1770659416784,0.00515211,2128.8,2128.1,10.90262236]
[1770659416980,0.23506,2128.6,2128.1,10.90262236]
[1770659418382,0.00515211,2128.8,2128.1,10.90262236]
[1770659418984,0.23501,2129.1,2128.3,10.90023357]
[1770659419183,30.403,2129.3,2128.3,10.90023357]
[1770659419386,30.403,2129.3,2128.5,11.41596293]
[1770659419691,28.05193967,2129.3,2128.5,11.41596293]
[1770659420092,28.05797039,2129.3,2128.6,11.41596293]
[1770659420285,0.00603072,2129.3,2128.6,11.41596293]
[1770659421294,0.23499,2129.2,2128.6,11.41596293]
[1770659421791,0.23499,2129.2,2128.6,20.81276293]
[1770659421991,1.75876644,2129.2,2128.0,11.41596293]
[1770659422288,1.75876644,2129.2,2128.1,11.41596293]
[1770659422491,5.78124,2129.1,2128.1,11.41596293]
[1770659422692,6.01656,2129.0,2128.1,11.41596293]
[1770659423296,0.23507,2128.5,2127.9,11.42166104]
[1770659423688,0.23507,2128.5,2128.1,11.41596293]
[1770659423884,0.23507,2128.5,2128.1,10.93343293]
[1770659424893,0.23502,2129.0,2128.4,11.41596293]
[1770659425090,1.67058678,2129.0,2128.2,11.41596293]
[1770659425485,5.10062645,2129.2,2128.2,11.41596293]
[1770659425996,12.0688312,2129.2,2128.2,11.41596293]
[1770659426193,0.23502,2129.0,2128.2,11.41596293]
[1770659426790,0.23502,2129.0,2128.5,11.64867345]
[1770659427393,0.23502,2129.0,2128.6,21.04547345]
[1770659427588,0.23502,2129.0,2128.6,11.64867345]
[1770659427795,0.23502,2129.0,2128.7,21.04547345]
[1770659427994,0.23502,2129.0,2128.7,11.64867345]
[1770659428195,0.23502,2129.0,2128.0,11.64867345]
[1770659428499,0.23502,2129.0,2128.3,11.64867345]
[1770659428798,3.66499967,2129.2,2128.3,11.64867345]
[1770659429199,0.23506,2128.6,2128.3,11.14540345]
[1770659429600,0.23506,2128.6,2128.5,19.84842023]
[1770659429800,0.23501,2129.1,2128.6,11.41693023]
[1770659430604,0.23501,2129.1,2129.0,10.83593293]
[1770659430898,0.23501,2129.1,2128.0,11.41596293]
[1770659431103,7.35171238,2129.0,2128.0,11.41596293]
[1770659431407,0.23503,2128.9,2128.2,11.41596293]
[1770659431698,6.24915703,2128.9,2128.1,11.41596293]
[1770659432002,6.24915703,2128.9,2128.2,11.41596293]
[1770659432208,6.48418703,2128.9,2128.2,11.41596293]
[1770659432610,6.48418703,2128.9,2128.3,8.43149]
[1770659432806,7.20323475,2128.9,2127.9,0.00569811]
[1770659433008,0.00503847,2128.5,2128.0,11.41596293]
[1770659433505,6.96820475,2128.8,2128.0,11.41596293]
[1770659434701,4.61714442,2128.8,2128.0,11.41596293]
[1770659435006,0.23503,2128.9,2128.0,11.41596293]
[1770659437908,14.24546178,2129.3,2128.0,11.41596293]
[1770659438112,22.53241018,2129.3,2128.0,11.41596293]
[1770659438410,0.23503,2128.9,2128.0,11.41596293]
[1770659438913,11.35546139,2129.5,2128.0,10.94563808]
[1770659439112,0.23499,2129.2,2128.0,10.94563808]
[1770659439313,11.59045139,2129.2,2128.0,10.94563808]
[1770659439707,11.5937512,2129.2,2128.0,10.94563808]
[1770659440810,11.35546139,2128.9,2127.9,0.00569811]
[1770659441018,11.35546139,2128.9,2128.0,4.98977124]
[1770659442618,11.59050139,2128.8,2128.0,4.98977124]
[1770659443422,11.59054139,2128.4,2127.9,0.00569811]
[1770659443718,0.23508,2128.4,2127.9,5.21861962]
[1770659443924,9.23948106,2128.8,2127.9,5.21861962]
[1770659444716,16.27621409,2128.8,2127.9,5.21861962]
[1770659444915,11.59051139,2128.7,2127.9,5.21861962]
[1770659445217,11.59053139,2128.5,2127.9,5.21861962]
[1770659446321,0.23507,2128.5,2127.9,5.21861962]
[1770659446519,8.2869484,2129.0,2127.9,5.21861962]
[1770659446820,9.29988974,2129.9,2128.1,2.34776052]
[1770659447524,0.23491,2130.0,2128.4,2.34776052]
[1770659447726,0.23491,2130.0,2128.4,2.58284052]
[1770659448024,11.67394428,2130.0,2128.4,2.58284052]
[1770659449923,9.32288395,2130.0,2128.4,2.58284052]
[1770659450726,11.67394428,2130.0,2128.4,2.58284052]
[1770659451018,11.67394428,2130.0,2128.4,2.34776052]
[1770659451019,0.235,2129.2,2128.4,2.34776052]
[1770659451224,11.67003634,2129.2,2128.4,2.34776052]
[1770659451627,11.67008634,2128.8,2128.1,4.61669714]
[1770659451822,11.67008634,2128.8,2127.9,8.11e-06]
[1770659451823,11.43503634,2128.3,2127.9,8.11e-06]
[1770659452023,11.43503634,2128.3,2127.5,4.56913194]
[1770659452224,11.43503634,2128.5,2127.5,4.56913194]
[1770659453024,9.08772568,2128.5,2127.5,4.57385385]
[1770659453730,0.00374967,2128.5,2127.5,4.57385385]
[1770659453926,11.43503634,2129.0,2127.5,4.57385385]
[1770659454325,11.43503634,2129.5,2127.7,6.89573643]
[1770659454517,11.43503634,2129.4,2127.7,6.89573643]
[1770659454926,11.43847869,2129.4,2127.7,6.89573643]
[1770659455526,0.00344235,2129.4,2128.1,6.89573643]
[1770659455822,0.00344235,2129.4,2128.3,6.90115757]
[1770659456023,11.43503634,2130.0,2128.6,0.23506]
[1770659456229,11.43503634,2130.2,2128.7,6.89771522]
[1770659457028,11.43950574,2130.2,2128.7,6.89771522]
[1770659457532,11.43503634,2129.8,2128.7,6.89771522]
[1770659458027,11.43503634,2129.4,2128.4,6.92484371]
[1770659459028,9.08397601,2129.4,2128.4,6.92484371]
[1770659459229,11.43503634,2129.0,2127.9,9.27590404]
[1770659460228,11.43503634,2128.8,2127.6,9.25499521]
[1770659460426,11.43503634,2128.9,2127.6,9.25499521]
[1770659460621,11.43503634,2129.2,2127.6,9.25499521]
[1770659461028,11.43503634,2129.0,2127.6,9.25499521]
[1770659461530,0.23501,2129.1,2127.6,9.25499521]
[1770659461724,11.67004634,2129.1,2127.6,9.25499521]
[1770659462224,9.31898601,2129.1,2127.6,9.25499521]
[1770659463031,9.55399601,2129.1,2127.6,9.25499521]
[1770659463325,11.43503634,2129.4,2127.6,9.25499521]
[1770659463531,11.43503634,2129.4,2127.8,10.98479469]
[1770659464526,11.43503634,2129.2,2127.8,10.98479469]
[1770659464728,0.23501,2129.1,2127.8,10.98479469]
[1770659464928,11.43503634,2129.0,2127.8,10.98479469]
[1770659465225,9.08397601,2129.0,2127.8,10.98479469]
[1770659465628,0.23501,2129.1,2127.8,10.98479469]
[1770659465826,11.43503634,2129.5,2127.8,10.98479469]
[1770659466125,11.43503634,2129.1,2127.8,10.98479469]
[1770659466330,11.43503634,2128.9,2127.8,10.98479469]
[1770659466724,11.43503634,2128.5,2127.6,10.98479469]
[1770659466925,11.43503634,2128.3,2127.5,10.9895166]
[1770659467321,11.43503634,2128.1,2127.5,0.00472191]
[1770659467721,11.43503634,2128.4,2127.5,10.9895166]
[1770659468127,9.08397601,2128.4,2127.5,10.9895166]
[1770659468324,0.00549651,2128.5,2127.5,10.9895166]
[1770659468631,11.44053285,2128.5,2127.0,0.23523]
[1770659468832,11.44053285,2128.5,2127.1,10.98479469]
[1770659469723,11.44053285,2128.5,2127.1,10.99023559]
[1770659471135,9.08947252,2128.5,2127.1,10.99023559]
[1770659472031,11.43503634,2128.1,2127.1,0.0054409]
[1770659472231,11.43951835,2128.1,2127.1,0.0054409]
[1770659472429,15.15246907,2128.1,2127.1,0.0054409]
[1770659472627,11.43503634,2128.0,2127.1,0.0054409]
[1770659473342,11.67016634,2128.0,2127.1,0.0054409]
[1770659474138,9.31910601,2128.0,2127.1,10.99023559]
[1770659474527,9.31910601,2128.0,2127.1,0.0054409]
[1770659475340,9.31910601,2128.0,2127.1,11.63730675]
[1770659475639,9.08397601,2128.0,2127.1,11.63730675]
[1770659476434,9.08397601,2128.0,2127.1,0.0054409]
[1770659477335,6.73291568,2128.0,2127.1,0.0054409]
[1770659477532,11.47023639,2127.8,2127.1,0.0054409]
[1770659478432,11.47023639,2127.6,2127.1,0.0054409]
[1770659479832,0.00448201,2128.1,2127.1,11.25692822]
[1770659480340,9.15572127,2128.5,2127.1,11.25692822]
[1770659480539,0.23511,2128.2,2127.1,11.25692822]
[1770659481241,0.23972542,2128.2,2127.1,11.25692822]
[1770659483345,9.15585468,2128.3,2127.1,11.25692822]
[1770659483544,0.23511,2128.2,2127.1,11.25692822]
[1770659483745,11.50229959,2128.2,2127.1,11.25692822]
[1770659483947,11.26718959,2128.5,2127.1,11.25692822]
[1770659484438,11.2716942,2128.5,2127.1,11.25692822]
[1770659486047,0.00450461,2128.5,2127.1,11.25692822]
[1770659486248,11.26718959,2129.6,2128.1,11.25148732]
[1770659486443,8.91612926,2129.6,2128.1,11.25148732]
[1770659487348,8.92172884,2129.6,2128.1,11.25148732]
[1770659487749,11.26718959,2129.4,2128.1,11.25148732]
[1770659488243,0.00559958,2129.6,2128.7,11.25148732]
[1770659488451,11.26718959,2130.3,2128.8,11.48652732]
[1770659489148,11.26718959,2131.0,2129.2,11.48647732]
[1770659489351,8.91612926,2130.5,2129.2,11.25481133]
[1770659489645,11.26718959,2130.1,2129.2,0.00332401]
[1770659489846,11.26718959,2129.9,2129.2,0.00332401]
[1770659490250,11.26718959,2129.7,2128.7,11.25148732]
[1770659490448,11.26718959,2129.3,2128.4,11.25148732]
[1770659490649,11.26718959,2128.9,2127.5,11.25148732]
[1770659490948,11.26718959,2128.7,2127.5,11.25148732]
[1770659491140,11.27117379,2128.7,2127.5,11.25662741]
[1770659491851,11.50622379,2128.7,2127.5,11.25662741]
[1770659492549,0.0039842,2128.7,2127.5,11.25662741]
[1770659493143,11.26718959,2129.5,2127.7,11.25148732]
[1770659494148,11.27162963,2129.5,2127.7,11.25148732]
[1770659494849,11.50215959,2129.4,2127.7,11.25148732]
[1770659495448,9.15109926,2129.4,2127.7,11.25148732]
[1770659496254,9.38606926,2129.4,2127.7,11.25148732]
[1770659497552,0.00444004,2129.5,2127.9,11.25148732]
[1770659497952,10.7173317,2129.5,2127.9,11.25148732]
[1770659498548,8.36627137,2129.5,2127.9,11.25148732]
[1770659499555,8.37146116,2129.5,2127.9,11.25148732]
[1770659500150,8.20451388,2129.2,2127.9,11.25148732]
[1770659501650,5.85345355,2129.2,2127.9,11.25148732]
[1770659502259,5.8446521,2129.5,2127.9,11.25148732]
[1770659502455,0.00518979,2129.5,2127.9,11.25148732]
[1770659502650,0.00518979,2129.5,2128.1,11.25148732]
[1770659502853,0.00518979,2129.5,2128.3,11.25148732]
[1770659503462,5.8446521,2130.6,2128.9,11.25148732]
[1770659503664,5.8446521,2130.8,2129.1,11.25148732]
[1770659504556,3.51522679,2130.6,2129.1,11.25606008]
[1770659505154,3.51522679,2130.4,2129.1,11.25606008]
[1770659505358,3.51522679,2130.2,2129.1,11.25606008]
[1770659505856,3.50828348,2130.0,2129.1,11.25606008]
[1770659506366,3.54551793,2129.6,2128.0,10.96309825]
[1770659506756,3.54551793,2129.4,2128.0,10.96309825]
[1770659507668,1.1944576,2129.4,2128.0,10.96795909]
[1770659508565,1.22192955,2129.7,2128.0,10.96795909]
[1770659508960,1.22192955,2129.5,2128.0,10.96795909]
[1770659509160,1.45687955,2129.6,2128.0,10.96795909]
[1770659509758,1.22192955,2129.9,2128.0,10.96795909]
[1770659510063,1.29264263,2129.7,2128.0,10.96795909]
[1770659510665,28.7435323,2130.1,2128.0,10.96795909]
[1770659511062,0.23495,2129.6,2128.0,10.96795909]
[1770659511363,5.78179,2128.9,2127.3,11.65382193]
[1770659511571,0.23511,2128.2,2127.3,11.65382193]
[1770659511869,5.78287,2128.5,2126.1,10.96309825]
[1770659511870,10.63865776,2127.9,2126.1,10.96309825]
[1770659512065,10.63865776,2127.9,2126.3,10.96309825]
[1770659512269,10.63865776,2128.2,2126.3,10.96309825]
[1770659512463,10.64197778,2128.2,2126.5,10.96309825]
[1770659512862,10.64197778,2128.2,2126.7,10.96309825]
[1770659513369,10.64197778,2128.2,2126.9,10.96309825]
[1770659513761,8.52598745,2128.5,2127.1,10.96309825]
[1770659514467,8.76105745,2128.5,2127.1,10.96309825]
[1770659514664,9.50967226,2128.2,2127.3,10.96309825]
[1770659514966,9.74481226,2127.9,2126.8,10.96309825]
[1770659515169,9.74481226,2127.9,2127.0,10.96309825]
[1770659515558,9.50967226,2127.6,2126.7,10.96309825]
[1770659515756,9.50967226,2127.3,2126.4,10.96309825]
[1770659516170,0.23521,2127.2,2126.4,10.96309825]
[1770659516370,9.75925384,2127.0,2126.1,10.96309825]
[1770659516661,0.23524,2127.0,2126.1,10.96309825]
[1770659516869,7.40819351,2127.1,2126.1,10.96309825]
[1770659517261,0.00561319,2127.1,2126.1,10.96812319]
[1770659518767,0.23516,2127.7,2126.1,10.96812319]
[1770659519267,7.79165069,2127.7,2126.1,10.96812319]
[1770659519763,5.44059036,2127.6,2126.1,10.96812319]
[1770659519969,5.53394863,2127.4,2126.1,10.96812319]
[1770659521667,5.76914863,2127.3,2126.1,10.96812319]
[1770659522269,5.7867,2127.1,2126.1,10.96812319]
[1770659522469,5.4328306,2127.0,2126.1,10.96812319]
[1770659522666,5.6680806,2126.9,2126.1,10.96812319]
[1770659522969,3.31702027,2126.9,2126.1,0.00502494]
[1770659523365,3.31702027,2126.8,2126.1,0.00502494]